[Event "*** SCC Grand Prix: Titled Tuesday Blitz"]
[Site "Chess.com"]
[Date "2020.10.06"]
[Round "3"]
[White "Koksik_13"]
[Black "Beca95"]
[Result "0-1"]
[WhiteElo "2674"]
[BlackElo "2895"]
[TimeControl "180+1"]
[EndTime "10:27:50 PDT"]
[Termination "Beca95 won on time"]

1. d4 {[%clk 0:02:59.7]} 1... Nf6 {[%clk 0:02:59.5]} 2. Nc3 {[%clk 0:02:59.2]}
2... d5 {[%clk 0:02:59.7]} 3. Bf4 {[%clk 0:02:56.7]} 3... a6 {[%clk 0:02:59.3]}
4. e3 {[%clk 0:02:56.7]} 4... c5 {[%clk 0:02:59.5]} 5. Nf3 {[%clk 0:02:55.7]}
5... cxd4 {[%clk 0:02:57.8]} 6. exd4 {[%clk 0:02:55.1]} 6... Bg4 {[%clk
0:02:57.5]} 7. Be2 {[%clk 0:02:52.2]} 7... Bxf3 {[%clk 0:02:57.4]} 8. Bxf3
{[%clk 0:02:52]} 8... e6 {[%clk 0:02:57.9]} 9. Ne2 {[%clk 0:02:50.7]} 9... Nc6
{[%clk 0:02:56.8]} 10. c3 {[%clk 0:02:50.6]} 10... h6 {[%clk 0:02:57.2]} 11. O-O
{[%clk 0:02:49.4]} 11... g5 {[%clk 0:02:53.9]} 12. Be5 {[%clk 0:02:46.4]} 12...
Nxe5 {[%clk 0:02:53.7]} 13. dxe5 {[%clk 0:02:46.2]} 13... Nd7 {[%clk 0:02:54.3]}
14. Bh5 {[%clk 0:02:37.5]} 14... Nxe5 {[%clk 0:02:52.7]} 15. f4 {[%clk
0:02:37.4]} 15... gxf4 {[%clk 0:02:52.4]} 16. Nxf4 {[%clk 0:02:37.4]} 16... Qb6+
{[%clk 0:02:50]} 17. Kh1 {[%clk 0:02:36.8]} 17... O-O-O {[%clk 0:02:46]} 18. Nd3
{[%clk 0:02:10]} 18... Nxd3 {[%clk 0:02:42.9]} 19. Qxd3 {[%clk 0:02:10.9]} 19...
f5 {[%clk 0:02:43.2]} 20. Rae1 {[%clk 0:02:04.4]} 20... Rh7 {[%clk 0:02:18.3]}
21. Re2 {[%clk 0:01:50.4]} 21... Re7 {[%clk 0:02:17]} 22. Rfe1 {[%clk
0:01:45.8]} 22... Kb8 {[%clk 0:02:06.5]} 23. Bg6 {[%clk 0:01:40.2]} 23... f4
{[%clk 0:02:05.4]} 24. b4 {[%clk 0:01:28.8]} 24... Bg7 {[%clk 0:02:03.3]} 25. c4
{[%clk 0:00:57.4]} 25... dxc4 {[%clk 0:02:02.2]} 26. Qxc4 {[%clk 0:00:56.5]}
26... e5 {[%clk 0:02:02.4]} 27. Be4 {[%clk 0:00:55.1]} 27... Rc7 {[%clk
0:02:02.2]} 28. Qb3 {[%clk 0:00:53.3]} 28... Rd4 {[%clk 0:02:00.8]} 29. a3
{[%clk 0:00:51.1]} 29... Ka7 {[%clk 0:02:00.3]} 30. h3 {[%clk 0:00:50.9]} 30...
h5 {[%clk 0:01:59.8]} 31. Qf3 {[%clk 0:00:49.1]} 31... h4 {[%clk 0:01:59]} 32.
Qg4 {[%clk 0:00:48.8]} 32... Bf6 {[%clk 0:01:57.7]} 33. Bf3 {[%clk 0:00:49.1]}
33... Rd3 {[%clk 0:01:53.9]} 34. a4 {[%clk 0:00:41.6]} 34... Qxb4 {[%clk
0:01:53.9]} 35. Qf5 {[%clk 0:00:41.8]} 35... Qd6 {[%clk 0:01:53.7]} 36. Kh2
{[%clk 0:00:34.7]} 36... Re3 {[%clk 0:01:47.9]} 37. Rxe3 {[%clk 0:00:30.6]}
37... fxe3 {[%clk 0:01:48.8]} 38. Qe4 {[%clk 0:00:30.8]} 38... Bg5 {[%clk
0:01:48]} 39. Rb1 {[%clk 0:00:30.6]} 39... Bf4+ {[%clk 0:01:47.4]} 40. Kh1
{[%clk 0:00:27.5]} 40... Qe7 {[%clk 0:01:38.3]} 41. a5 {[%clk 0:00:22.6]} 41...
Qh7 {[%clk 0:01:38]} 42. Qb4 {[%clk 0:00:19.7]} 42... e2 {[%clk 0:01:32]} 43.
Bxe2 {[%clk 0:00:05.5]} 43... Qxb1+ {[%clk 0:01:31.1]} 44. Qxb1 {[%clk
0:00:03.5]} 44... Rc1+ {[%clk 0:01:31.1]} 45. Qxc1 {[%clk 0:00:03.3]} 45... Bxc1
{[%clk 0:01:32]} 46. g3 {[%clk 0:00:03.8]} 46... hxg3 {[%clk 0:01:31.7]} 47. h4
{[%clk 0:00:04.1]} 47... e4 {[%clk 0:01:32.2]} 48. h5 {[%clk 0:00:04.5]} 48...
Bd2 {[%clk 0:01:32.2]} 49. Kg2 {[%clk 0:00:05.4]} 49... Bxa5 {[%clk 0:01:32]}
50. h6 {[%clk 0:00:05.8]} 50... Bc3 {[%clk 0:01:28.2]} 51. Kxg3 {[%clk
0:00:06.1]} 51... b5 {[%clk 0:01:26.4]} 52. Kf4 {[%clk 0:00:06.2]} 52... Bd2+
{[%clk 0:01:26.6]} 53. Kxe4 {[%clk 0:00:06.6]} 53... Bxh6 {[%clk 0:01:26.7]} 54.
Kd3 {[%clk 0:00:06.7]} 54... Kb6 {[%clk 0:01:26.8]} 55. Kc3 {[%clk 0:00:05.5]}
55... a5 {[%clk 0:01:26.4]} 56. Kb2 {[%clk 0:00:02.6]} 56... a4 {[%clk
0:01:25.8]} 57. Bd1 {[%clk 0:00:01.3]} 57... Kc5 {[%clk 0:01:24.8]} 58. Ka2
{[%clk 0:00:02.2]} 58... Bf4 {[%clk 0:01:21.4]} 59. Bc2 {[%clk 0:00:02.6]} 59...
Kc4 {[%clk 0:01:20.8]} 60. Bd1 {[%clk 0:00:03.5]} 60... Kc3 {[%clk 0:01:20.2]}
61. Ka3 {[%clk 0:00:02.5]} 61... Bd6+ {[%clk 0:01:19.1]} 62. Ka2 {[%clk
0:00:02.7]} 62... Kd2 {[%clk 0:01:15.2]} 63. Bg4 {[%clk 0:00:02]} 63... b4
{[%clk 0:01:15.3]} 64. Be6 {[%clk 0:00:01.7]} 64... Kc3 {[%clk 0:01:14.4]} 65.
Kb1 {[%clk 0:00:02]} 65... b3 {[%clk 0:01:14.6]} 66. Ka1 {[%clk 0:00:01.4]}
66... a3 {[%clk 0:01:14.4]} 0-1

[Event "*** SCC Grand Prix: Titled Tuesday Blitz"]
[Site "Chess.com"]
[Date "2020.10.06"]
[Round "3"]
[White "vaishali2001"]
[Black "semchik73"]
[Result "1-0"]
[WhiteElo "2527"]
[BlackElo "2304"]
[TimeControl "180+1"]
[EndTime "10:27:51 PDT"]
[Termination "vaishali2001 won by resignation"]

1. d4 {[%clk 0:03:00.9]} 1... d5 {[%clk 0:02:59.7]} 2. Bf4 {[%clk 0:03:00.4]}
2... c6 {[%clk 0:02:59.7]} 3. Nd2 {[%clk 0:02:53.2]} 3... Nf6 {[%clk 0:02:56.8]}
4. e3 {[%clk 0:02:52.2]} 4... Bf5 {[%clk 0:02:53.7]} 5. Ngf3 {[%clk 0:02:35]}
5... e6 {[%clk 0:02:53.4]} 6. c4 {[%clk 0:02:31.2]} 6... Bd6 {[%clk 0:02:53.2]}
7. Bxd6 {[%clk 0:02:22.5]} 7... Qxd6 {[%clk 0:02:52.1]} 8. Qb3 {[%clk
0:02:23.4]} 8... Qc7 {[%clk 0:02:47.2]} 9. Be2 {[%clk 0:02:22.9]} 9... O-O
{[%clk 0:02:46.4]} 10. O-O {[%clk 0:02:23.1]} 10... Nbd7 {[%clk 0:02:46.3]} 11.
Rac1 {[%clk 0:02:19.7]} 11... a5 {[%clk 0:02:38.2]} 12. a4 {[%clk 0:02:08]}
12... Qb6 {[%clk 0:02:36.3]} 13. Qxb6 {[%clk 0:01:55.9]} 13... Nxb6 {[%clk
0:02:35.7]} 14. b3 {[%clk 0:01:56.8]} 14... dxc4 {[%clk 0:02:28.4]} 15. Nxc4
{[%clk 0:01:53.4]} 15... Nxc4 {[%clk 0:02:27]} 16. bxc4 {[%clk 0:01:50.2]} 16...
c5 {[%clk 0:02:23.7]} 17. Ne5 {[%clk 0:01:40.8]} 17... cxd4 {[%clk 0:02:22.1]}
18. exd4 {[%clk 0:01:36.4]} 18... Rfd8 {[%clk 0:02:21.6]} 19. Rfd1 {[%clk
0:01:35.2]} 19... h6 {[%clk 0:02:11.7]} 20. f3 {[%clk 0:01:12.5]} 20... Rac8
{[%clk 0:02:08.9]} 21. Kf2 {[%clk 0:01:11.7]} 21... Rd6 {[%clk 0:02:01.7]} 22.
g4 {[%clk 0:00:52.1]} 22... Bh7 {[%clk 0:02:00.7]} 23. Ke3 {[%clk 0:00:31.1]}
23... Rb6 {[%clk 0:01:59.8]} 24. h4 {[%clk 0:00:29]} 24... Rb4 {[%clk
0:01:57.7]} 25. g5 {[%clk 0:00:27.3]} 25... hxg5 {[%clk 0:01:48.3]} 26. hxg5
{[%clk 0:00:28.2]} 26... Ne8 {[%clk 0:01:48.2]} 27. Rh1 {[%clk 0:00:22.1]} 27...
Bf5 {[%clk 0:01:33.7]} 28. Rh2 {[%clk 0:00:14.4]} 28... Kf8 {[%clk 0:01:27.5]}
29. Rh8+ {[%clk 0:00:11.1]} 29... Ke7 {[%clk 0:01:27.1]} 30. Ra1 {[%clk
0:00:09.6]} 30... Nd6 {[%clk 0:01:21.3]} 31. Rxc8 {[%clk 0:00:08.6]} 31... Nxc8
{[%clk 0:01:21.7]} 32. c5 {[%clk 0:00:08.7]} 32... f6 {[%clk 0:01:02.4]} 33.
gxf6+ {[%clk 0:00:08.4]} 33... gxf6 {[%clk 0:01:02.6]} 34. Nc4 {[%clk
0:00:07.7]} 34... Rb3+ {[%clk 0:00:45.7]} 35. Kf2 {[%clk 0:00:06.2]} 35... Bd3
{[%clk 0:00:41.1]} 36. Bxd3 {[%clk 0:00:04.8]} 36... Rxd3 {[%clk 0:00:40.9]} 37.
Rb1 {[%clk 0:00:04.6]} 37... Rxd4 {[%clk 0:00:38.1]} 38. Rxb7+ {[%clk
0:00:05.2]} 38... Kd8 {[%clk 0:00:38.1]} 39. Nxa5 {[%clk 0:00:05.3]} 39... Rxa4
{[%clk 0:00:32.5]} 40. Nc6+ {[%clk 0:00:05.9]} 40... Ke8 {[%clk 0:00:32.5]} 41.
Rc7 {[%clk 0:00:06.5]} 41... Ra8 {[%clk 0:00:28.9]} 42. Kg3 {[%clk 0:00:07]}
42... e5 {[%clk 0:00:18.4]} 43. Kg4 {[%clk 0:00:06.7]} 43... Ra4+ {[%clk
0:00:17.3]} 44. Kf5 {[%clk 0:00:06.4]} 44... Rf4+ {[%clk 0:00:15.5]} 45. Ke6
{[%clk 0:00:06.4]} 1-0

[Event "*** SCC Grand Prix: Titled Tuesday Blitz"]
[Site "Chess.com"]
[Date "2020.10.06"]
[Round "3"]
[White "Morshynska"]
[Black "kreonx"]
[Result "1-0"]
[WhiteElo "2207"]
[BlackElo "2348"]
[TimeControl "180+1"]
[EndTime "10:27:51 PDT"]
[Termination "Morshynska won by checkmate"]

1. Nf3 {[%clk 0:03:00.9]} 1... g6 {[%clk 0:02:59.3]} 2. g3 {[%clk 0:03:01.8]}
2... Bg7 {[%clk 0:02:59.8]} 3. Bg2 {[%clk 0:03:01.7]} 3... e5 {[%clk 0:03:00.2]}
4. O-O {[%clk 0:03:02.6]} 4... Nc6 {[%clk 0:03:00]} 5. c4 {[%clk 0:02:54.2]}
5... d6 {[%clk 0:02:58.6]} 6. Nc3 {[%clk 0:02:45.1]} 6... Be6 {[%clk 0:02:57.4]}
7. Nd5 {[%clk 0:02:38.8]} 7... h6 {[%clk 0:02:56.5]} 8. Rb1 {[%clk 0:02:32]}
8... Qd7 {[%clk 0:02:55.7]} 9. Re1 {[%clk 0:02:28.1]} 9... f5 {[%clk 0:02:52.3]}
10. d3 {[%clk 0:02:17.4]} 10... Nd8 {[%clk 0:02:50.9]} 11. e4 {[%clk 0:01:52.3]}
11... c6 {[%clk 0:02:49]} 12. Nc3 {[%clk 0:01:51.3]} 12... Nf6 {[%clk
0:02:44.7]} 13. d4 {[%clk 0:01:27.4]} 13... Nxe4 {[%clk 0:02:35.4]} 14. dxe5
{[%clk 0:01:06.7]} 14... Nxc3 {[%clk 0:02:29.1]} 15. bxc3 {[%clk 0:01:07.6]}
15... dxe5 {[%clk 0:02:29.2]} 16. Qxd7+ {[%clk 0:01:02.5]} 16... Kxd7 {[%clk
0:02:14.4]} 17. Nxe5+ {[%clk 0:01:03.4]} 17... Bxe5 {[%clk 0:02:05.7]} 18. Rxe5
{[%clk 0:01:04.3]} 18... Bxc4 {[%clk 0:02:02.7]} 19. Ba3 {[%clk 0:00:58.1]}
19... Be6 {[%clk 0:01:07.2]} 20. Rd1+ {[%clk 0:00:45.8]} 20... Kc7 {[%clk
0:01:07.3]} 21. Rxd8 {[%clk 0:00:28.8]} 21... Raxd8 {[%clk 0:01:04.7]} 22. Rxe6
{[%clk 0:00:29.1]} 22... Rhe8 {[%clk 0:00:48.7]} 23. Rxe8 {[%clk 0:00:18.9]}
23... Rxe8 {[%clk 0:00:49.6]} 24. Kf1 {[%clk 0:00:19.2]} 24... b6 {[%clk
0:00:50.2]} 25. h4 {[%clk 0:00:17.9]} 25... c5 {[%clk 0:00:49.6]} 26. Bc1 {[%clk
0:00:17.5]} 26... h5 {[%clk 0:00:46.3]} 27. Bf4+ {[%clk 0:00:17]} 27... Kd7
{[%clk 0:00:46.8]} 28. Bd5 {[%clk 0:00:15.4]} 28... b5 {[%clk 0:00:45.3]} 29.
Bf7 {[%clk 0:00:14.4]} 29... Rc8 {[%clk 0:00:42.8]} 30. Bxg6 {[%clk 0:00:14.3]}
30... Ke6 {[%clk 0:00:43.4]} 31. Bxh5 {[%clk 0:00:14.1]} 31... b4 {[%clk
0:00:43]} 32. c4 {[%clk 0:00:11.7]} 32... a5 {[%clk 0:00:42.6]} 33. Bd1 {[%clk
0:00:11]} 33... Rd8 {[%clk 0:00:40.7]} 34. Ke2 {[%clk 0:00:10.6]} 34... Rd4
{[%clk 0:00:38.6]} 35. h5 {[%clk 0:00:10.6]} 35... Kf6 {[%clk 0:00:32.5]} 36. h6
{[%clk 0:00:10.2]} 36... Kg6 {[%clk 0:00:31.5]} 37. Bb3 {[%clk 0:00:09.5]} 37...
a4 {[%clk 0:00:31.4]} 38. Bxa4 {[%clk 0:00:08.6]} 38... Rxc4 {[%clk 0:00:32]}
39. Bb3 {[%clk 0:00:07.7]} 39... Rc3 {[%clk 0:00:30.5]} 40. Bg8 {[%clk
0:00:07.4]} 40... c4 {[%clk 0:00:28.9]} 41. h7 {[%clk 0:00:07.4]} 41... Rc2+
{[%clk 0:00:15.1]} 42. Kd1 {[%clk 0:00:07.5]} 42... b3 {[%clk 0:00:05.5]} 43.
h8=Q {[%clk 0:00:05.6]} 43... bxa2 {[%clk 0:00:04.9]} 44. Qh6# {[%clk
0:00:05.1]} 1-0

[Event "*** SCC Grand Prix: Titled Tuesday Blitz"]
[Site "Chess.com"]
[Date "2020.10.06"]
[Round "3"]
[White "AsaHoffmann"]
[Black "Fh2411"]
[Result "1-0"]
[WhiteElo "2349"]
[BlackElo "2520"]
[TimeControl "180+1"]
[EndTime "10:27:53 PDT"]
[Termination "AsaHoffmann won by resignation"]

1. d4 {[%clk 0:02:55.5]} 1... d5 {[%clk 0:02:54.5]} 2. Bg5 {[%clk 0:02:54]} 2...
c6 {[%clk 0:02:53]} 3. e3 {[%clk 0:02:53]} 3... Bf5 {[%clk 0:02:53.4]} 4. c4
{[%clk 0:02:52.1]} 4... Qb6 {[%clk 0:02:51.9]} 5. Qb3 {[%clk 0:02:50.9]} 5...
Qxb3 {[%clk 0:02:42.9]} 6. axb3 {[%clk 0:02:50.2]} 6... Bxb1 {[%clk 0:02:41.2]}
7. Rxb1 {[%clk 0:02:49.2]} 7... e6 {[%clk 0:02:41.8]} 8. Bd3 {[%clk 0:02:47.1]}
8... Nd7 {[%clk 0:02:42.1]} 9. Nf3 {[%clk 0:02:45.9]} 9... Ngf6 {[%clk
0:02:42.5]} 10. Ke2 {[%clk 0:02:39]} 10... Bd6 {[%clk 0:02:39.4]} 11. Bf4 {[%clk
0:02:20.4]} 11... Ke7 {[%clk 0:02:19]} 12. Bxd6+ {[%clk 0:02:12.6]} 12... Kxd6
{[%clk 0:02:18.7]} 13. Rhd1 {[%clk 0:02:01.7]} 13... h6 {[%clk 0:01:59.6]} 14.
h3 {[%clk 0:02:00.5]} 14... Rhe8 {[%clk 0:01:56.9]} 15. Kf1 {[%clk 0:01:44.7]}
15... Kc7 {[%clk 0:01:38.5]} 16. Ra1 {[%clk 0:01:35.3]} 16... e5 {[%clk
0:01:32.9]} 17. Bf5 {[%clk 0:01:33.4]} 17... exd4 {[%clk 0:01:23.5]} 18. Bxd7
{[%clk 0:01:32.2]} 18... Kxd7 {[%clk 0:01:16.1]} 19. cxd5 {[%clk 0:01:27.8]}
19... Nxd5 {[%clk 0:01:13.8]} 20. Nxd4 {[%clk 0:01:25.9]} 20... g6 {[%clk
0:01:11.5]} 21. Rac1 {[%clk 0:01:14.7]} 21... a6 {[%clk 0:01:08.6]} 22. Rc2
{[%clk 0:01:06.6]} 22... Kc7 {[%clk 0:01:03.1]} 23. Nb5+ {[%clk 0:00:54]} 23...
axb5 {[%clk 0:01:00.5]} 24. Rxd5 {[%clk 0:00:53.1]} 24... Kb6 {[%clk 0:00:48.5]}
25. Rd7 {[%clk 0:00:52.5]} 25... Rf8 {[%clk 0:00:48]} 26. Ke2 {[%clk 0:00:50.2]}
26... Rad8 {[%clk 0:00:43.4]} 27. Rcd2 {[%clk 0:00:49.3]} 27... Rxd7 {[%clk
0:00:41.9]} 28. Rxd7 {[%clk 0:00:48.6]} 28... c5 {[%clk 0:00:42.5]} 29. e4
{[%clk 0:00:44.7]} 29... Kc6 {[%clk 0:00:40.8]} 30. Re7 {[%clk 0:00:44.4]} 30...
b6 {[%clk 0:00:23.4]} 31. Ke3 {[%clk 0:00:44.1]} 31... Kd6 {[%clk 0:00:22.9]}
32. Rb7 {[%clk 0:00:43.2]} 32... Kc6 {[%clk 0:00:23.1]} 33. Re7 {[%clk
0:00:42.5]} 33... f5 {[%clk 0:00:20.4]} 34. e5 {[%clk 0:00:41.4]} 34... Kd5
{[%clk 0:00:18.9]} 35. f4 {[%clk 0:00:40.8]} 35... c4 {[%clk 0:00:19.4]} 36.
Rd7+ {[%clk 0:00:40]} 36... Kc5 {[%clk 0:00:19.1]} 37. bxc4 {[%clk 0:00:37.8]}
37... bxc4 {[%clk 0:00:18.8]} 38. Rd6 {[%clk 0:00:37.5]} 38... g5 {[%clk
0:00:18.8]} 39. g3 {[%clk 0:00:36]} 39... gxf4+ {[%clk 0:00:17.6]} 40. Kxf4
{[%clk 0:00:35.3]} 40... h5 {[%clk 0:00:17.1]} 41. Rh6 {[%clk 0:00:32.5]} 41...
Rd8 {[%clk 0:00:17]} 42. e6 {[%clk 0:00:31.2]} 42... Rd2 {[%clk 0:00:17.9]} 43.
Kxf5 {[%clk 0:00:30.7]} 43... Rxb2 {[%clk 0:00:17.3]} 44. e7 {[%clk 0:00:30.5]}
44... Rf2+ {[%clk 0:00:18]} 45. Ke6 {[%clk 0:00:29.9]} 45... Re2+ {[%clk
0:00:18.3]} 46. Kd7 {[%clk 0:00:29.7]} 46... c3 {[%clk 0:00:18.9]} 47. Rxh5+
{[%clk 0:00:29.2]} 47... Kc4 {[%clk 0:00:18.7]} 48. Rh6 {[%clk 0:00:28.3]} 48...
b5 {[%clk 0:00:19.1]} 49. Re6 {[%clk 0:00:25.9]} 49... Rd2+ {[%clk 0:00:19.2]}
50. Kc7 {[%clk 0:00:25.2]} 50... c2 {[%clk 0:00:19.2]} 51. Rc6+ {[%clk
0:00:23.2]} 51... Kb3 {[%clk 0:00:19]} 52. e8=Q {[%clk 0:00:22.3]} 52... Kb2
{[%clk 0:00:17.7]} 53. Rxc2+ {[%clk 0:00:21.6]} 53... Rxc2+ {[%clk 0:00:18.6]}
54. Kb6 {[%clk 0:00:21]} 54... b4 {[%clk 0:00:18.9]} 55. Qe5+ {[%clk 0:00:20.4]}
55... Rc3 {[%clk 0:00:18.2]} 56. Kb5 {[%clk 0:00:19.7]} 56... Kb3 {[%clk
0:00:18.7]} 57. Qd4 {[%clk 0:00:17.8]} 1-0

[Event "*** SCC Grand Prix: Titled Tuesday Blitz"]
[Site "Chess.com"]
[Date "2020.10.06"]
[Round "3"]
[White "awesomevishesh"]
[Black "ExcitingTrap"]
[Result "0-1"]
[WhiteElo "2416"]
[BlackElo "2261"]
[TimeControl "180+1"]
[EndTime "10:27:53 PDT"]
[Termination "ExcitingTrap won on time"]

1. e4 {[%clk 0:03:00.9]} 1... e6 {[%clk 0:02:56.2]} 2. d4 {[%clk 0:03:00.4]}
2... d5 {[%clk 0:02:56.6]} 3. Nc3 {[%clk 0:03:00.4]} 3... Nf6 {[%clk 0:02:55.5]}
4. e5 {[%clk 0:03:00.2]} 4... Nfd7 {[%clk 0:02:55.4]} 5. f4 {[%clk 0:03:00.1]}
5... c5 {[%clk 0:02:55.5]} 6. Nf3 {[%clk 0:03:00.1]} 6... Nc6 {[%clk 0:02:55.7]}
7. Be3 {[%clk 0:03:00]} 7... f6 {[%clk 0:02:54]} 8. exf6 {[%clk 0:01:45.9]} 8...
Qxf6 {[%clk 0:02:52.2]} 9. Qd2 {[%clk 0:01:38.1]} 9... a6 {[%clk 0:02:41.6]} 10.
g4 {[%clk 0:01:20.6]} 10... Bd6 {[%clk 0:02:32.5]} 11. g5 {[%clk 0:01:11.8]}
11... Qf5 {[%clk 0:02:32.2]} 12. Bd3 {[%clk 0:00:50]} 12... Qh3 {[%clk
0:02:31.6]} 13. Qf2 {[%clk 0:00:30.5]} 13... cxd4 {[%clk 0:02:19.9]} 14. Nxd4
{[%clk 0:00:30.3]} 14... Nxd4 {[%clk 0:02:12]} 15. Bxd4 {[%clk 0:00:30.3]} 15...
O-O {[%clk 0:02:10.9]} 16. f5 {[%clk 0:00:29.6]} 16... e5 {[%clk 0:02:06.8]} 17.
Nxd5 {[%clk 0:00:19.7]} 17... exd4 {[%clk 0:02:03.1]} 18. O-O-O {[%clk
0:00:17.2]} 18... Ne5 {[%clk 0:01:37.2]} 19. f6 {[%clk 0:00:15.8]} 19... Be6
{[%clk 0:01:22.3]} 20. Qxd4 {[%clk 0:00:14.9]} 20... Nxd3+ {[%clk 0:01:06.7]}
21. Rxd3 {[%clk 0:00:13.4]} 21... Qg2 {[%clk 0:01:06.2]} 22. Rhd1 {[%clk
0:00:05.6]} 22... Qxg5+ {[%clk 0:01:04.4]} 23. Kb1 {[%clk 0:00:04.6]} 23... Bxd5
{[%clk 0:01:03.2]} 24. fxg7 {[%clk 0:00:03]} 24... Rf5 {[%clk 0:00:59.8]} 25. c4
{[%clk 0:00:02.9]} 25... Qxg7 {[%clk 0:00:49]} 26. cxd5 {[%clk 0:00:02.2]} 26...
Qxd4 {[%clk 0:00:48]} 27. Rxd4 {[%clk 0:00:02.7]} 27... Rf2 {[%clk 0:00:45.5]}
28. Rg4+ {[%clk 0:00:02.8]} 28... Kf7 {[%clk 0:00:44.6]} 29. Re4 {[%clk
0:00:02.7]} 29... Rxh2 {[%clk 0:00:39.6]} 30. Re6 {[%clk 0:00:02.8]} 30... Rd8
{[%clk 0:00:39.9]} 31. Rf1+ {[%clk 0:00:02.8]} 31... Kg7 {[%clk 0:00:36.6]} 32.
a3 {[%clk 0:00:03.3]} 32... Rg2 {[%clk 0:00:32]} 33. Ref6 {[%clk 0:00:03.3]}
33... Rd7 {[%clk 0:00:30.6]} 34. Re6 {[%clk 0:00:03.3]} 34... Rg6 {[%clk
0:00:26.4]} 35. Re4 {[%clk 0:00:02.9]} 35... Rg5 {[%clk 0:00:24.7]} 36. Rd1
{[%clk 0:00:02.9]} 36... Rg6 {[%clk 0:00:18.4]} 37. Re3 {[%clk 0:00:02.2]} 37...
Bf4 {[%clk 0:00:17.8]} 38. Re4 {[%clk 0:00:02.3]} 38... Bg5 {[%clk 0:00:18.2]}
39. Re5 {[%clk 0:00:02.3]} 39... Bf6 {[%clk 0:00:18.6]} 40. Re6 {[%clk
0:00:02.6]} 40... Rg2 {[%clk 0:00:18.9]} 41. b4 {[%clk 0:00:02.5]} 41... Rb2+
{[%clk 0:00:18.6]} 42. Ka1 {[%clk 0:00:01.9]} 42... Rd2+ {[%clk 0:00:17.7]} 43.
Rxf6 {[%clk 0:00:01]} 43... Rxd1+ {[%clk 0:00:18]} 0-1

[Event "*** SCC Grand Prix: Titled Tuesday Blitz"]
[Site "Chess.com"]
[Date "2020.10.06"]
[Round "3"]
[White "Igor_Bitensky"]
[Black "beto-betun"]
[Result "0-1"]
[WhiteElo "2316"]
[BlackElo "2160"]
[TimeControl "180+1"]
[EndTime "10:27:53 PDT"]
[Termination "beto-betun won on time"]

1. d4 {[%clk 0:03:00.9]} 1... Nf6 {[%clk 0:02:59.2]} 2. Bf4 {[%clk 0:02:58.7]}
2... g6 {[%clk 0:02:58.6]} 3. Nc3 {[%clk 0:02:54.5]} 3... d5 {[%clk 0:02:46]} 4.
Qd2 {[%clk 0:02:45.3]} 4... Bg7 {[%clk 0:02:45.3]} 5. O-O-O {[%clk 0:02:34.8]}
5... O-O {[%clk 0:02:43.2]} 6. Bh6 {[%clk 0:02:34.3]} 6... c5 {[%clk 0:02:32.4]}
7. Bxg7 {[%clk 0:02:32.6]} 7... Kxg7 {[%clk 0:02:33.3]} 8. dxc5 {[%clk
0:02:29.5]} 8... Qa5 {[%clk 0:02:32.7]} 9. Kb1 {[%clk 0:02:10.3]} 9... Nc6
{[%clk 0:02:28.5]} 10. Nxd5 {[%clk 0:01:54.6]} 10... Qxd2 {[%clk 0:02:15.6]} 11.
Rxd2 {[%clk 0:01:55.5]} 11... Ne4 {[%clk 0:02:02.5]} 12. Nf3 {[%clk 0:01:24.9]}
12... Nxf2 {[%clk 0:02:02.6]} 13. Rg1 {[%clk 0:01:20.3]} 13... Ne4 {[%clk
0:01:58.1]} 14. Rd1 {[%clk 0:01:10.3]} 14... Bg4 {[%clk 0:01:53]} 15. h3 {[%clk
0:01:01.9]} 15... Be6 {[%clk 0:01:53.5]} 16. Nc7 {[%clk 0:00:58.1]} 16... Rad8
{[%clk 0:01:53.4]} 17. Nxe6+ {[%clk 0:00:57.8]} 17... fxe6 {[%clk 0:01:52.8]}
18. Rc1 {[%clk 0:00:30.3]} 18... Nxc5 {[%clk 0:01:50.7]} 19. e3 {[%clk
0:00:27.5]} 19... Ne4 {[%clk 0:01:40.3]} 20. Bd3 {[%clk 0:00:26.3]} 20... Ng3
{[%clk 0:01:40.4]} 21. Rcd1 {[%clk 0:00:22.5]} 21... Rd6 {[%clk 0:01:38.4]} 22.
a3 {[%clk 0:00:21.5]} 22... e5 {[%clk 0:01:36.1]} 23. Bc4 {[%clk 0:00:18.5]}
23... Rfd8 {[%clk 0:01:33.6]} 24. Kc1 {[%clk 0:00:17.2]} 24... Rxd1+ {[%clk
0:01:26.7]} 25. Rxd1 {[%clk 0:00:13.8]} 25... Kf6 {[%clk 0:01:26.4]} 26. Rxd8
{[%clk 0:00:12.6]} 26... Nxd8 {[%clk 0:01:27]} 27. Kd2 {[%clk 0:00:12.1]} 27...
e6 {[%clk 0:01:24.2]} 28. Ke1 {[%clk 0:00:10.8]} 28... Ne4 {[%clk 0:01:19.5]}
29. Bd3 {[%clk 0:00:08.8]} 29... Nc5 {[%clk 0:01:20]} 30. Bc4 {[%clk 0:00:08.6]}
30... Na4 {[%clk 0:01:18.1]} 31. b3 {[%clk 0:00:06.9]} 31... Nc3 {[%clk
0:01:18.5]} 32. Kd2 {[%clk 0:00:05.8]} 32... Nb1+ {[%clk 0:01:18.6]} 33. Ke2
{[%clk 0:00:05.7]} 33... Nxa3 {[%clk 0:01:14.6]} 34. Bd3 {[%clk 0:00:06.2]}
34... Nb1 {[%clk 0:01:12.9]} 35. Nd2 {[%clk 0:00:06.9]} 35... Nc3+ {[%clk
0:01:11]} 36. Kf2 {[%clk 0:00:06.5]} 36... Nc6 {[%clk 0:01:06.5]} 37. Ne4+
{[%clk 0:00:07.4]} 37... Nxe4+ {[%clk 0:01:04.4]} 38. Bxe4 {[%clk 0:00:08.3]}
38... Nb4 {[%clk 0:01:03.7]} 39. Ke2 {[%clk 0:00:08.7]} 39... b6 {[%clk
0:01:01.9]} 40. Kd2 {[%clk 0:00:08.8]} 40... a5 {[%clk 0:01:01.5]} 41. Kc3
{[%clk 0:00:09.1]} 41... b5 {[%clk 0:01:00.2]} 42. Bb7 {[%clk 0:00:07]} 42...
Nd5+ {[%clk 0:00:58.2]} 43. Kd2 {[%clk 0:00:06.9]} 43... a4 {[%clk 0:00:57.3]}
44. bxa4 {[%clk 0:00:07.3]} 44... bxa4 {[%clk 0:00:58.2]} 45. c4 {[%clk
0:00:07.8]} 45... a3 {[%clk 0:00:48.3]} 46. Kc2 {[%clk 0:00:08.3]} 46... Nxe3+
{[%clk 0:00:46.6]} 47. Kb3 {[%clk 0:00:08.7]} 47... Nxc4 {[%clk 0:00:45.9]} 48.
Bc8 {[%clk 0:00:06]} 48... Nd6 {[%clk 0:00:40.1]} 49. Ba6 {[%clk 0:00:05.9]}
49... e4 {[%clk 0:00:40]} 50. Kxa3 {[%clk 0:00:06.3]} 50... Ke5 {[%clk
0:00:38.5]} 51. Kb2 {[%clk 0:00:06.8]} 51... Kd4 {[%clk 0:00:38.8]} 52. Kc1
{[%clk 0:00:07.2]} 52... Ke3 {[%clk 0:00:39.2]} 53. Kd1 {[%clk 0:00:04]} 53...
Kf2 {[%clk 0:00:39.5]} 54. g4 {[%clk 0:00:04]} 54... e3 {[%clk 0:00:39.7]} 55.
g5 {[%clk 0:00:03.1]} 55... Ne4 {[%clk 0:00:39.5]} 56. Bc4 {[%clk 0:00:02.4]}
56... Nxg5 {[%clk 0:00:38.4]} 0-1